bitfinex/quotes_BTCUSD_20250718
["timestamp","ask_amount","ask_price","bid_price","bid_amount"]
[1752836284315,1e-08,119220.0,119210.0,1.72695256]
[1752836284528,1e-08,119230.0,119220.0,0.22321979]
[1752836284737,0.00012553,119230.0,119220.0,1.36075053]
[1752836284977,0.00012553,119230.0,119220.0,1.36370053]
[1752836285186,0.00012553,119230.0,119220.0,1.36705553]
[1752836286081,0.00012553,119230.0,119220.0,1.70905553]
[1752836286720,0.00012553,119230.0,119220.0,1.71005553]
[1752836296752,1e-08,119230.0,119220.0,1.71005553]
[1752836298974,1e-08,119230.0,119220.0,1.72459638]
[1752836300025,0.0002,119240.0,119230.0,0.2089036]
[1752836300239,0.0002,119240.0,119230.0,1.36149434]
[1752836300449,0.0002,119240.0,119230.0,1.36444434]
[1752836300886,0.003,119250.0,119240.0,0.58022828]
[1752836301100,0.003,119250.0,119240.0,1.59245902]
[1752836301324,0.003,119250.0,119240.0,1.72081902]
[1752836301783,0.003,119250.0,119240.0,1.59245902]
[1752836301994,0.003,119250.0,119240.0,1.72081902]
[1752836303181,0.02061,119250.0,119240.0,1.67078428]
[1752836303428,0.02061,119250.0,119240.0,1.79716428]
[1752836303652,0.02358,119250.0,119240.0,1.79716428]
[1752836303873,0.02061,119250.0,119240.0,1.79716428]
[1752836304117,0.02061,119250.0,119240.0,1.79914428]
[1752836304337,0.02061,119250.0,119240.0,1.80239428]
[1752836304777,0.02061,119250.0,119240.0,1.81068327]
[1752836305200,0.02061,119250.0,119240.0,1.69591159]
[1752836305469,0.02061,119250.0,119240.0,1.69491159]
[1752836305652,0.02061,119250.0,119240.0,1.69791159]
[1752836306059,0.02061,119250.0,119240.0,1.69268159]
[1752836307693,0.02061,119250.0,119240.0,1.69368159]
[1752836308327,0.003,119250.0,119240.0,1.71551159]
[1752836310301,0.003,119250.0,119240.0,1.58715159]
[1752836310498,0.003,119250.0,119240.0,1.71547159]
[1752836311787,0.003,119250.0,119240.0,1.69887159]
[1752836313016,0.003,119250.0,119240.0,1.71387159]
[1752836321313,0.003,119250.0,119240.0,1.71383159]
[1752836321516,0.003,119250.0,119240.0,1.73180213]
[1752836322292,1e-08,119260.0,119250.0,0.53287126]
[1752836322514,0.0154,119280.0,119250.0,1.72089697]
[1752836322515,0.0002,119280.0,119250.0,1.72089697]
[1752836322716,0.00032556,119280.0,119270.0,1.1274738]
[1752836322956,0.00032556,119280.0,119270.0,1.35954408]
[1752836323161,0.00032556,119280.0,119270.0,1.36279408]
[1752836323993,0.00032556,119280.0,119270.0,1.36379408]
[1752836324149,0.00032556,119280.0,119270.0,1.36679408]
[1752836325505,0.00032556,119280.0,119270.0,1.39137977]
[1752836328741,0.00032556,119280.0,119270.0,1.39133977]
[1752836331090,0.00032556,119280.0,119270.0,1.26309977]
[1752836331327,0.00032556,119280.0,119270.0,1.39133977]
[1752836332025,0.00032556,119280.0,119270.0,1.74703977]
[1752836333788,0.00032556,119280.0,119270.0,1.74303977]
[1752836334003,0.00032556,119280.0,119270.0,1.74803977]
[1752836334352,1e-08,119280.0,119270.0,1.74803977]
[1752836334784,1e-08,119280.0,119270.0,1.61979977]
[1752836335002,1e-08,119280.0,119270.0,1.73233977]
[1752836335431,1e-08,119280.0,119270.0,1.73433977]
[1752836336374,1e-08,119280.0,119270.0,1.75013977]
[1752836337504,1e-08,119280.0,119270.0,1.72555408]
[1752836340376,1e-08,119280.0,119270.0,1.75130687]
[1752836340833,1e-08,119280.0,119270.0,1.75126687]
[1752836343391,1e-08,119280.0,119270.0,1.73546687]
[1752836343586,0.00211001,119280.0,119270.0,1.60726687]
[1752836343785,0.01811001,119280.0,119270.0,1.71591687]
[1752836343988,0.00211001,119280.0,119270.0,1.71591687]
[1752836344216,1e-08,119280.0,119270.0,1.71910687]
[1752836344355,1e-08,119280.0,119270.0,1.73450687]
[1752836346909,1e-08,119280.0,119270.0,1.75040687]
[1752836347503,1e-08,119280.0,119270.0,1.62220687]
[1752836347717,1e-08,119280.0,119270.0,1.75040687]
[1752836347922,1e-08,119280.0,119270.0,1.62220687]
[1752836348302,1e-08,119280.0,119270.0,1.75040687]
[1752836349152,1e-08,119280.0,119270.0,1.73450687]
[1752836349962,1e-08,119280.0,119270.0,1.73446687]
[1752836353245,1e-08,119280.0,119270.0,1.73506121]
[1752836353444,1e-08,119280.0,119270.0,1.75036121]
[1752836354107,1e-08,119280.0,119270.0,1.74976687]
[1752836354758,1e-08,119280.0,119270.0,1.73446687]
[1752836355684,1e-08,119280.0,119270.0,1.74976687]
[1752836356476,1e-08,119280.0,119270.0,1.62160687]
[1752836356680,1e-08,119280.0,119270.0,1.74976687]
[1752836364751,0.00197001,119280.0,119270.0,1.60630687]
[1752836364964,0.03704001,119280.0,119270.0,1.239269]
[1752836365166,0.03704001,119280.0,119270.0,1.81395186]
[1752836365373,0.03704001,119280.0,119270.0,1.82849271]
[1752836365815,0.03704001,119280.0,119270.0,1.70037271]
[1752836366023,0.03397001,119280.0,119270.0,1.82849271]
[1752836367093,0.03397001,119280.0,119270.0,1.71340845]
[1752836367321,0.01737001,119280.0,119270.0,1.71340845]
[1752836371838,0.01737001,119280.0,119270.0,1.76340845]
[1752836372519,0.01737001,119280.0,119270.0,1.63528845]
[1752836372726,0.01737001,119280.0,119270.0,1.76340845]
[1752836374168,0.03684001,119280.0,119270.0,1.17546564]
[1752836374389,0.03684001,119280.0,119270.0,1.12546564]
[1752836374607,0.03684001,119280.0,119270.0,0.66564283]
[1752836374818,0.03684001,119280.0,119270.0,1.12546564]
[1752836377636,0.03377001,119280.0,119270.0,1.12546564]
[1752836379553,0.01737001,119280.0,119270.0,1.12546564]
[1752836380624,0.03367001,119280.0,119270.0,1.12546564]
[1752836380966,0.01737001,119280.0,119270.0,1.12546564]
[1752836382915,0.00236076,119290.0,119280.0,0.65264556]
[1752836384302,0.00236076,119290.0,119280.0,0.65664556]
[1752836385866,0.01836076,119290.0,119280.0,0.65664556]
[1752836387621,0.016,119290.0,119280.0,0.65664556]
[1752836388151,0.14404,119290.0,119280.0,0.65664556]
[1752836389076,0.14404,119290.0,119280.0,1.23148209]
[1752836390362,0.14404,119290.0,119280.0,1.23459209]
[1752836390884,0.14404,119290.0,119280.0,1.23148209]
[1752836391016,0.14404,119290.0,119280.0,1.22748209]
[1752836391375,0.14404,119290.0,119280.0,1.22948209]
[1752836391588,0.15924,119290.0,119280.0,1.23048209]
[1752836392606,0.15924,119290.0,119280.0,1.22848209]
[1752836392954,0.15924,119290.0,119280.0,1.23048209]
[1752836393169,0.15924,119290.0,119280.0,1.22848209]
[1752836393599,0.15924,119290.0,119280.0,1.22948209]
[1752836393806,0.15924,119290.0,119280.0,1.22848209]
[1752836393931,0.14918217,119290.0,119280.0,1.22948209]
[1752836394333,0.12804,119290.0,119280.0,1.23270209]
[1752836394580,0.12804,119290.0,119280.0,1.23170209]
[1752836395456,0.12804,119290.0,119280.0,1.22848209]
[1752836395986,0.14324,119290.0,119280.0,0.19382275]
[1752836396196,0.12804,119290.0,119280.0,1.22848209]
[1752836397799,0.12804,119290.0,119280.0,1.23170209]
[1752836406229,0.12804,119290.0,119280.0,0.19704275]
[1752836406428,0.12804,119290.0,119280.0,1.23170209]
[1752836406658,0.12804,119290.0,119280.0,0.19704275]
[1752836406932,0.12804,119290.0,119280.0,1.23170209]
[1752836410197,0.12804,119290.0,119280.0,1.24780209]
[1752836410421,0.12804,119290.0,119280.0,1.24982209]
[1752836410685,0.12804,119290.0,119280.0,0.21516275]
[1752836410904,0.12804,119290.0,119280.0,1.24982209]
[1752836419914,0.12808,119290.0,119280.0,0.71639242]
[1752836420159,0.19456428,119290.0,119280.0,0.001]
[1752836420396,0.18452788,119290.0,119280.0,0.51832967]
[1752836420845,0.34380408,119290.0,119280.0,0.51832967]
[1752836421257,0.34380408,119290.0,119280.0,0.51732967]
[1752836423983,0.0251518,119270.0,119260.0,0.52902082]
[1752836424188,0.14468761,119270.0,119260.0,1.05653024]
[1752836424400,0.15307166,119270.0,119260.0,1.07173024]
[1752836424571,0.15307166,119270.0,119260.0,1.07387024]
[1752836425238,0.16145578,119270.0,119260.0,1.07387024]
[1752836425449,0.15307166,119270.0,119260.0,1.07387024]
[1752836426328,0.14468761,119270.0,119260.0,1.08987024]
[1752836426555,0.14468761,119270.0,119260.0,0.59735861]
[1752836426800,0.14468761,119270.0,119260.0,1.11468828]
[1752836427038,0.00842265,119290.0,119280.0,0.00838349]
[1752836427266,0.32914931,119290.0,119280.0,1.26960537]
[1752836427490,0.16149067,119290.0,119280.0,1.28108851]
[1752836427921,0.32914931,119290.0,119280.0,1.24755553]
[1752836428125,0.19284687,119290.0,119280.0,1.22433909]
[1752836428335,0.32076687,119290.0,119280.0,1.22433909]
[1752836428547,0.3040015,119290.0,119280.0,0.69648593]
[1752836428956,0.01676705,119280.0,119270.0,0.21223919]
[1752836429165,0.01676649,119280.0,119270.0,0.20432303]
[1752836429384,0.01676649,119280.0,119270.0,0.22062303]
[1752836429740,0.02514991,119280.0,119270.0,0.22062303]
[1752836430166,0.01676649,119280.0,119270.0,0.7400927]
[1752836430374,0.0335334,119280.0,119270.0,0.7400927]
[1752836431020,0.04191696,119280.0,119270.0,0.7400927]
[1752836431222,0.04191696,119280.0,119270.0,0.7237927]
[1752836431893,0.0335334,119280.0,119270.0,0.7237927]
[1752836432114,0.02514991,119280.0,119270.0,0.7237927]
[1752836432304,0.0335334,119280.0,119270.0,0.7237927]
[1752836432507,0.0335734,119280.0,119270.0,0.7237927]
[1752836432869,0.0335734,119280.0,119270.0,0.7401927]
[1752836433071,0.20962966,119280.0,119270.0,0.7401927]
[1752836433280,0.01680635,119280.0,119270.0,0.7401927]
[1752836433710,0.02518977,119280.0,119270.0,0.7401927]
[1752836434302,0.03357326,119280.0,119270.0,0.7401927]
[1752836434513,0.20962952,119280.0,119270.0,0.7401927]
[1752836434899,0.20124645,119280.0,119270.0,0.72342488]
[1752836435122,0.20124645,119280.0,119270.0,0.71540893]
[1752836435341,0.20124645,119280.0,119270.0,0.76540893]
[1752836435571,0.20124645,119280.0,119270.0,0.77379291]
[1752836435828,0.20664765,119280.0,119270.0,0.05]
[1752836436048,0.19826416,119280.0,119270.0,0.74340076]
[1752836436273,0.1898806,119280.0,119270.0,0.73501643]
[1752836436500,0.1898806,119280.0,119270.0,0.74340076]
[1752836436885,0.1898806,119280.0,119270.0,0.75178495]
[1752836437100,0.1898806,119280.0,119270.0,0.23445528]
[1752836437515,0.1898806,119280.0,119270.0,0.22607109]
[1752836437641,0.1898806,119280.0,119270.0,0.24283947]
[1752836438008,0.19826416,119280.0,119270.0,0.25122352]
[1752836438226,0.19826416,119280.0,119270.0,0.2627075]
[1752836438452,0.00842314,119280.0,119270.0,0.74020657]
[1752836438671,0.01680649,119280.0,119270.0,0.75630657]
[1752836438874,0.01680642,119280.0,119270.0,0.75630657]
[1752836439304,0.02518984,119280.0,119270.0,0.75630657]
[1752836439513,0.02518991,119280.0,119270.0,0.75630657]
[1752836440591,0.20124617,119280.0,119270.0,0.29624701]
[1752836440770,0.20124617,119280.0,119270.0,0.75630657]
[1752836441866,0.02518991,119280.0,119270.0,0.75630657]
[1752836442924,0.03357347,119280.0,119270.0,0.75630657]
[1752836443515,0.16145347,119280.0,119270.0,0.75630657]
[1752836443813,0.15306991,119280.0,119270.0,0.75630657]
[1752836444325,0.16145347,119280.0,119270.0,0.75630657]
[1752836445182,0.12792,119280.0,119270.0,0.75630657]
[1752836445399,0.13630314,119280.0,119270.0,0.75630657]
[1752836445613,0.13626307,119280.0,119270.0,0.75630657]
[1752836446064,0.14464621,119280.0,119270.0,0.75630657]
[1752836446281,0.15302956,119280.0,119270.0,0.75630657]
[1752836446791,0.14464621,119280.0,119270.0,0.75630657]
[1752836446998,0.15302949,119280.0,119270.0,0.75630657]
[1752836447455,0.15302949,119280.0,119270.0,0.75453434]
[1752836447882,0.15302949,119280.0,119270.0,0.75326914]
[1752836449135,0.14464621,119280.0,119270.0,0.75326914]
[1752836449348,0.15302949,119280.0,119270.0,0.75326914]
[1752836451793,0.12788,119280.0,119270.0,1.65337983]
[1752836452427,0.12788,119280.0,119270.0,1.19332027]
[1752836452628,0.12788,119280.0,119270.0,1.65337983]
[1752836453270,0.00842237,119290.0,119280.0,0.56492275]
[1752836453486,0.00842237,119290.0,119280.0,1.48715187]
[1752836453487,0.12792,119290.0,119280.0,1.48715187]
[1752836453705,0.13630229,119290.0,119280.0,1.49028187]
[1752836454120,0.12792,119290.0,119280.0,1.49028187]
[1752836454756,0.12569829,119290.0,119280.0,1.49028187]
[1752836454970,0.13408058,119290.0,119280.0,1.49028187]
[1752836455192,0.12569829,119290.0,119280.0,1.49028187]
[1752836455832,0.13408066,119290.0,119280.0,1.03022231]
[1752836457802,0.12569829,119290.0,119280.0,1.03022231]
[1752836458930,0.13408058,119290.0,119280.0,1.03022231]
[1752836459421,0.12569829,119290.0,119280.0,1.03022231]
[1752836460202,0.13408066,119290.0,119280.0,0.57016275]
[1752836460410,0.00076676,119300.0,119290.0,0.57894744]
[1752836460622,0.12860676,119300.0,119290.0,1.12975728]
[1752836461978,0.12860676,119300.0,119290.0,1.13075728]
[1752836462184,0.00076676,119300.0,119290.0,1.13075728]
[1752836462384,0.12860676,119300.0,119290.0,1.13075728]
[1752836465219,0.12776854,119300.0,119290.0,1.13075728]
[1752836467475,0.13084,119310.0,119300.0,0.58023126]
[1752836467680,0.13084,119310.0,119300.0,1.1310411]
[1752836468810,0.13133875,119310.0,119300.0,1.1310411]
[1752836469902,0.13133875,119310.0,119300.0,1.1320411]
[1752836475230,0.29896929,119310.0,119300.0,1.12365937]
[1752836475451,0.13971978,119310.0,119300.0,1.1320411]
[1752836475675,0.14810088,119310.0,119300.0,1.1320411]
[1752836475908,0.13971978,119310.0,119300.0,1.1320411]
[1752836476579,0.14810095,119310.0,119300.0,1.1320411]
[1752836476805,0.13971978,119310.0,119300.0,1.1320411]
[1752836477432,0.13971971,119310.0,119300.0,1.1320411]
[1752836477991,0.14810088,119310.0,119300.0,1.1320411]
[1752836478196,0.15648184,119310.0,119300.0,1.1320411]
[1752836479716,0.14810074,119310.0,119300.0,1.1320411]
[1752836479960,0.15648191,119310.0,119300.0,1.1320411]
[1752836480607,0.32411245,119310.0,119300.0,0.46465028]
[1752836480811,0.17324474,119310.0,119300.0,1.11750011]
[1752836481654,0.16486322,119310.0,119300.0,1.11750011]
[1752836481881,0.1732446,119310.0,119300.0,1.11750011]
[1752836482098,0.14810074,119310.0,119300.0,1.11750011]
[1752836482311,0.13971971,119310.0,119300.0,1.11750011]
[1752836482536,0.13133875,119310.0,119300.0,1.11750011]
[1752836482759,0.13129875,119310.0,119300.0,1.11750011]
[1752836483624,0.00349875,119310.0,119300.0,1.11750011]
[1752836484076,0.13129875,119310.0,119300.0,1.11750011]
[1752836485204,0.1304606,119310.0,119300.0,1.11750011]
[1752836490010,0.1304206,119310.0,119300.0,1.11750011]
[1752836490958,0.1304206,119310.0,119300.0,1.13204096]
[1752836490959,0.0026606,119310.0,119300.0,1.13204096]
[1752836491193,0.1304206,119310.0,119300.0,1.13204096]
[1752836491851,0.0026606,119310.0,119300.0,1.13204096]
[1752836492737,0.0026606,119310.0,119300.0,1.25980096]
[1752836496676,0.0026606,119310.0,119300.0,1.13204096]
[1752836496893,0.0026606,119310.0,119300.0,1.25980096]
[1752836497720,0.0026606,119310.0,119300.0,1.30980096]
[1752836499676,0.0026606,119310.0,119300.0,0.8497414]
[1752836499912,0.0026606,119310.0,119300.0,1.30980096]
[1752836503595,0.0026606,119310.0,119300.0,1.18204096]
[1752836504277,0.0026606,119310.0,119300.0,1.30980096]
[1752836505144,0.00182245,119310.0,119300.0,1.30980096]
[1752836513142,0.00182245,119310.0,119300.0,1.18204096]
[1752836513355,0.00182245,119310.0,119300.0,1.30976096]
[1752836517141,0.00182245,119310.0,119300.0,1.88368638]
[1752836519061,0.00182245,119310.0,119300.0,1.30921685]
[1752836522263,0.00182245,119310.0,119300.0,1.18149685]
[1752836522475,0.00182245,119310.0,119300.0,1.30921685]
[1752836523796,0.00182245,119310.0,119300.0,1.18149685]
[1752836524001,0.00182245,119310.0,119300.0,1.14648685]
[1752836524455,0.00182245,119310.0,119300.0,1.16178685]
[1752836524614,0.00182245,119310.0,119300.0,1.16376685]
[1752836525015,0.0009843,119310.0,119300.0,1.17876685]
[1752836526578,0.01473524,119320.0,119310.0,0.19277426]
[1752836526794,0.01478509,119320.0,119310.0,0.65228971]
[1752836527167,0.00640483,119320.0,119310.0,0.65228971]
[1752836527773,4.985e-05,119320.0,119310.0,0.65228971]
[1752836528134,4.985e-05,119320.0,119310.0,0.65543971]
[1752836528591,0.00843011,119320.0,119310.0,0.65543971]
[1752836528808,4.985e-05,119320.0,119310.0,0.65543971]
[1752836529464,0.00843011,119320.0,119310.0,0.65543971]
[1752836530369,0.00843011,119320.0,119300.0,0.83247911]
[1752836530370,0.21529309,119310.0,119300.0,0.05]
[1752836530594,0.23205557,119310.0,119300.0,0.22602667]
[1752836530858,0.23205557,119310.0,119300.0,0.50951545]
[1752836531080,0.21529344,119310.0,119300.0,0.50951545]
[1752836531307,0.21529344,119310.0,119300.0,0.05]
[1752836531526,0.34297344,119310.0,119300.0,0.05]
[1752836532244,0.34297344,119310.0,119300.0,0.051]
[1752836532738,0.34297344,119310.0,119300.0,0.21864459]
[1752836532955,0.34297344,119310.0,119300.0,0.22602681]
[1752836533290,0.34297344,119310.0,119300.0,0.23440896]
[1752836533552,0.34297344,119310.0,119300.0,0.24279104]
[1752836533774,0.34297344,119310.0,119300.0,0.71068836]
[1752836534886,0.34297344,119310.0,119300.0,0.71068843]
[1752836537887,0.34297344,119310.0,119300.0,0.7190703]
[1752836539794,0.34297344,119310.0,119300.0,0.71906988]
[1752836541213,0.34276389,119310.0,119300.0,0.71906946]
[1752836542954,0.17513335,119310.0,119300.0,0.71906946]
[1752836543159,0.175133,119310.0,119300.0,0.71906946]
[1752836543601,0.35114506,119310.0,119300.0,0.71906946]
[1752836543812,0.175133,119310.0,119300.0,0.71906946]
[1752836544031,0.35114499,119310.0,119300.0,0.71906946]
[1752836544235,0.18351445,119310.0,119300.0,0.71906946]
[1752836544682,0.175133,119310.0,119300.0,0.71906946]
[1752836544867,0.14444255,119310.0,119300.0,0.71906946]
[1752836545945,0.01676206,119310.0,119300.0,0.71906946]
[1752836546148,0.03357173,119320.0,119310.0,0.2011555]
[1752836546366,0.16125173,119320.0,119310.0,0.66380095]
[1752836546570,0.33724904,119320.0,119310.0,0.65541992]
[1752836546781,0.40624793,119320.0,119310.0,0.64390882]
[1752836547321,0.27856793,119320.0,119310.0,0.64390882]
[1752836547584,0.32048831,119320.0,119310.0,0.19277454]
[1752836548023,0.32048831,119320.0,119310.0,0.20115564]
[1752836549188,0.3288685,119320.0,119310.0,0.20115564]
[1752836549391,0.3288685,119320.0,119310.0,0.19277454]
[1752836549611,0.3288685,119320.0,119310.0,0.20115564]
[1752836549843,0.2011885,119320.0,119310.0,0.20115564]
[1752836550056,0.3288685,119320.0,119310.0,0.20115564]
[1752836550267,0.3288685,119320.0,119310.0,0.64390882]
[1752836550485,0.32048824,119320.0,119310.0,0.64390882]
[1752836551107,0.34390777,119320.0,119310.0,0.64390882]
[1752836551509,0.34390777,119320.0,119310.0,0.18439337]
[1752836551758,0.38696648,119320.0,119310.0,0.18439351]
[1752836552527,0.38686648,119320.0,119310.0,0.19277489]
[1752836553116,0.36338566,119320.0,119310.0,0.18439351]
[1752836553385,0.37768566,119320.0,119310.0,0.70998247]
[1752836553806,0.34678566,119320.0,119310.0,0.51720758]
[1752836554070,0.20115578,119310.0,119300.0,0.76312806]
[1752836554528,0.20115578,119310.0,119300.0,0.77150979]
[1752836554755,0.02514379,119310.0,119300.0,0.77150979]
[1752836555417,0.01676241,119310.0,119300.0,0.78680979]
[1752836555636,0.01676241,119310.0,119300.0,0.80509979]
[1752836556463,0.02514379,119310.0,119300.0,0.80509979]
[1752836558367,0.02514379,119310.0,119300.0,0.78879979]
[1752836559237,0.01676241,119310.0,119300.0,0.78879979]
[1752836559448,0.02514372,119310.0,119300.0,0.78879979]
[1752836560085,0.0335251,119310.0,119300.0,0.78879979]
[1752836560525,0.20115564,119310.0,119300.0,0.26960221]
[1752836560739,0.04190662,119310.0,119300.0,0.78680979]
[1752836560970,0.04190662,119310.0,119300.0,0.78879979]
[1752836561541,0.20953716,119310.0,119300.0,0.78879979]
[1752836561758,0.04190662,119310.0,119300.0,0.78879979]
[1752836562171,0.20115599,119310.0,119300.0,0.23753868]
[1752836562387,0.20115599,119310.0,119300.0,0.76312813]
[1752836562571,0.20030574,119310.0,119300.0,0.76312813]
[1752836563055,0.20787475,119310.0,119300.0,0.05]
[1752836563273,0.20631206,119310.0,119300.0,0.56720758]
[1752836563502,0.20631206,119310.0,119300.0,0.05]
[1752836563960,1.3262375,119310.0,119300.0,0.05]
[1752836565066,0.75192199,119310.0,119300.0,0.05]
[1752836565295,0.80192199,119310.0,119300.0,0.05]
[1752836565949,0.80196199,119310.0,119300.0,0.05]
[1752836566791,0.80296199,119310.0,119300.0,0.05]
[1752836567232,0.93872161,119310.0,119300.0,0.05]
[1752836567690,0.18442401,119290.0,119280.0,0.003]
[1752836567897,0.88941394,119290.0,119280.0,0.003]
[1752836569231,0.93941394,119290.0,119280.0,0.003]
[1752836569458,0.98941394,119290.0,119280.0,0.003]
[1752836569664,1.07517356,119290.0,119280.0,0.003]
[1752836569870,1.07617356,119290.0,119280.0,0.003]
[1752836570084,1.08460204,119290.0,119280.0,0.003]
[1752836570297,1.08360204,119290.0,119280.0,0.003]
[1752836570707,1.08460204,119290.0,119280.0,0.003]
[1752836570913,1.08564204,119290.0,119280.0,0.003]
[1752836572645,1.03564204,119290.0,119280.0,0.003]
[1752836572894,0.95796204,119290.0,119280.0,0.003]
[1752836573451,1.08564204,119290.0,119280.0,0.003]
[1752836573853,0.95796204,119290.0,119280.0,0.003]
[1752836574076,1.08564204,119290.0,119280.0,0.003]
[1752836575630,1.11081204,119290.0,119280.0,0.003]
[1752836575832,1.58545254,119290.0,119260.0,0.07011128]
[1752836576041,0.72475458,119270.0,119260.0,0.07011128]
[1752836576252,1.61494448,119270.0,119260.0,0.003]
[1752836576916,1.15484483,119270.0,119260.0,0.003]
[1752836577119,1.64011848,119270.0,119260.0,0.003]
[1752836577322,1.64016829,119270.0,119260.0,0.003]
[1752836577540,1.64116829,119270.0,119260.0,0.003]
[1752836577979,1.64016829,119270.0,119260.0,0.003]
[1752836578188,1.64516829,119270.0,119260.0,0.003]
[1752836579390,0.21518587,119250.0,119240.0,0.07011128]
[1752836579597,1.23346572,119250.0,119240.0,0.07011128]
[1752836580512,1.23446572,119250.0,119240.0,0.07011128]
[1752836580729,1.32264572,119250.0,119240.0,0.07311128]
[1752836580961,1.23446572,119250.0,119240.0,0.07311128]
[1752836581393,1.21930572,119250.0,119240.0,0.07311128]
[1752836581601,0.75920607,119250.0,119240.0,0.07311128]
[1752836581818,1.21930572,119250.0,119240.0,0.07311128]
[1752836582268,1.20380572,119250.0,119240.0,0.006]
[1752836584031,1.23480572,119250.0,119240.0,0.006]
[1752836584526,1.28480572,119250.0,119240.0,0.006]
[1752836586661,1.67480572,119250.0,119240.0,0.006]
[1752836587592,1.69998472,119250.0,119240.0,0.006]
[1752836590071,1.70002472,119250.0,119240.0,0.006]
[1752836591185,1.40332472,119250.0,119240.0,0.006]
[1752836592324,1.27560472,119250.0,119240.0,0.006]
[1752836592539,1.37232472,119250.0,119240.0,0.006]
[1752836592759,1.40402472,119250.0,119240.0,0.006]
[1752836595924,1.87866522,119250.0,119240.0,1e-08]
[1752836596804,0.65471681,119230.0,119220.0,0.003]
[1752836597024,1.38009258,119230.0,119220.0,0.003]
[1752836598120,1.38009258,119230.0,119220.0,0.00349875]
[1752836598669,0.91999293,119230.0,119220.0,0.00349875]
[1752836598896,1.38009258,119230.0,119220.0,0.00349875]
[1752836599135,0.91999293,119230.0,119220.0,0.00349875]
[1752836599346,1.38209258,119230.0,119220.0,0.00349875]
[1752836599820,1.38209258,119230.0,119220.0,0.00449875]
[1752836600037,0.92199293,119230.0,119220.0,0.00449875]
[1752836600262,1.38209258,119230.0,119220.0,0.01969875]
[1752836600716,0.92199293,119230.0,119220.0,0.01969875]
[1752836600938,1.47027258,119230.0,119220.0,0.01969875]
[1752836601134,1.33209258,119230.0,119220.0,0.01969875]
[1752836601358,1.38209258,119230.0,119220.0,0.01969875]
[1752836601578,1.38209258,119230.0,119220.0,0.00449875]
[1752836603568,1.3905249,119230.0,119220.0,0.00449875]
[1752836605005,0.93042525,119230.0,119220.0,0.00449875]
[1752836605221,1.3905249,119230.0,119220.0,0.00449875]
[1752836606327,1.3905249,119230.0,119220.0,0.02413875]
[1752836606328,1.3405249,119230.0,119220.0,0.02413875]
[1752836606542,1.3905249,119230.0,119220.0,0.02413875]
[1752836606777,1.3905249,119230.0,119220.0,0.04053875]
[1752836607502,1.3905249,119230.0,119220.0,0.02413875]
[1752836607728,1.3905249,119230.0,119220.0,0.00449875]
[1752836608369,1.5918849,119230.0,119220.0,0.00449875]
[1752836609074,1.5919249,119230.0,119220.0,0.00449875]
[1752836609311,1.13182525,119230.0,119220.0,0.00449875]
[1752836609530,1.5919249,119230.0,119220.0,0.00449875]
[1752836609754,1.5919249,119230.0,119220.0,0.01989875]
[1752836609970,1.13182525,119230.0,119220.0,0.03873875]
[1752836610183,1.5919249,119230.0,119220.0,0.03873875]
[1752836612080,1.6171059,119230.0,119220.0,0.03873875]
[1752836613769,1.6171059,119230.0,119220.0,0.00449875]
[1752836614426,1.6474059,119230.0,119220.0,0.00449875]
[1752836615121,1.6151059,119230.0,119220.0,0.00449875]
[1752836615546,1.6231059,119230.0,119220.0,0.00449875]
[1752836616842,1.6538059,119230.0,119220.0,0.00449875]
[1752836617252,0.00838841,119210.0,119200.0,0.13624]
[1752836617485,1.1462295,119210.0,119200.0,0.13636556]
[1752836617689,1.23198912,119210.0,119200.0,0.13636556]
[1752836617903,1.23198912,119210.0,119200.0,0.13846556]
[1752836618855,1.23198912,119210.0,119200.0,0.13636556]
[1752836620345,1.23298912,119210.0,119200.0,0.13846556]
[1752836620553,0.77288947,119210.0,119200.0,0.13846556]
[1752836620778,0.64512947,119210.0,119200.0,0.13846556]
[1752836620989,0.60161957,119210.0,119200.0,0.66567649]
[1752836621654,0.60161957,119210.0,119200.0,0.20557684]
[1752836622125,0.60161957,119210.0,119200.0,0.13846556]
[1752836622537,0.68712985,119210.0,119200.0,0.13846556]
[1752836622778,1.43434912,119210.0,119200.0,0.13846556]
[1752836623683,0.97424947,119210.0,119200.0,0.13846556]
[1752836625193,1.43434912,119210.0,119200.0,0.13636556]
[1752836625414,1.43434912,119210.0,119200.0,0.10312556]
[1752836625631,0.56617435,119200.0,119190.0,0.0312]
[1752836625844,1.3253039,119200.0,119190.0,0.01572552]
[1752836626551,1.3253039,119200.0,119190.0,0.00012552]
[1752836626961,1.3253039,119200.0,119190.0,0.00336552]
[1752836627171,1.3253039,119200.0,119190.0,0.01996552]
[1752836627608,1.3253039,119200.0,119180.0,0.019]
[1752836627609,0.17618913,119190.0,119180.0,0.03974]
[1752836627826,0.98535868,119190.0,119180.0,0.0201497]
[1752836628041,0.98535868,119190.0,119180.0,0.0354497]
[1752836628254,0.98535868,119190.0,119180.0,0.0386897]
[1752836628469,0.57521903,119190.0,119180.0,0.0407897]
[1752836628688,0.26169941,119190.0,119180.0,0.0407897]
[1752836628935,0.38953941,119190.0,119180.0,0.0407897]
[1752836629442,0.38953941,119190.0,119180.0,0.66870274]
[1752836629443,0.31341888,119190.0,119180.0,0.66870274]
[1752836629658,0.02391883,119190.0,119180.0,0.69387388]
[1752836629891,0.15175883,119190.0,119180.0,0.69387388]
[1752836630103,0.15175876,119190.0,119180.0,0.69387388]
[1752836630316,0.15175876,119190.0,119180.0,0.74387388]
[1752836630524,0.16014858,119190.0,119180.0,0.74487388]
[1752836630766,0.15175876,119190.0,119180.0,0.74487388]
[1752836630988,0.16014865,119190.0,119180.0,0.74487388]
[1752836631708,0.14461901,119190.0,119180.0,0.74487388]
[1752836631922,0.1845634,119200.0,119190.0,0.21677902]
[1752836632130,0.3124034,119200.0,119190.0,0.68209867]
[1752836632339,0.21813675,119210.0,119200.0,0.22495252]
[1752836632562,0.36275336,119210.0,119200.0,0.69866093]
[1752836632783,0.53052452,119210.0,119200.0,0.69027217]
[1752836633235,0.51374805,119210.0,119200.0,0.68188319]
[1752836633448,0.50535964,119210.0,119200.0,0.68188319]
[1752836634107,0.57267131,119210.0,119200.0,0.69027217]
[1752836634567,0.22652474,119210.0,119200.0,0.70704983]
[1752836634784,0.53056445,119210.0,119200.0,0.70704983]
[1752836635025,0.35440474,119210.0,119200.0,0.70704983]
[1752836635241,0.35440474,119210.0,119200.0,0.70804983]
[1752836635667,0.53056445,119210.0,119200.0,0.69966107]
[1752836635892,0.53056445,119210.0,119200.0,0.70804983]
[1752836635893,0.35440474,119210.0,119200.0,0.70804983]
[1752836636380,0.36279322,119210.0,119200.0,0.70804983]
[1752836636619,0.52217632,119210.0,119200.0,0.68290869]
[1752836636870,0.52217632,119210.0,119200.0,0.69129788]
[1752836637098,0.52217632,119210.0,119200.0,0.699687]
[1752836637946,0.50539964,119210.0,119200.0,0.49831965]